fUST/lending_fUST_20240831
["ID","MTS","AMOUNT","RATE_DAILY","PERIOD"]
[336708161,1725051041394,-500.0,0.00032755,2]
[336708162,1725051041404,-500.0,0.00032755,2]
[336708163,1725051041414,-500.0,0.00032755,2]
[336708164,1725051041424,-500.0,0.00032755,2]
[336708165,1725051041434,-500.0,0.00032755,2]
[336708166,1725051041446,-500.0,0.00032755,2]
[336708167,1725051041457,-500.0,0.00032755,2]
[336708168,1725051041467,-500.0,0.00032755,2]
[336708169,1725051041476,-500.0,0.00032755,2]
[336708170,1725051041491,-500.0,0.00032755,2]
[336708171,1725051041500,-500.0,0.00032755,2]
[336708172,1725051041509,-500.0,0.00032755,2]
[336708173,1725051041518,-500.0,0.00032755,2]
[336708174,1725051041527,-500.0,0.00032755,2]
[336708175,1725051041537,-500.0,0.00032755,2]
[336708176,1725051041546,-500.0,0.00032755,2]
[336708177,1725051041555,-500.0,0.00032755,2]
[336708178,1725051041565,-500.0,0.00032755,2]
[336708179,1725051041574,-500.0,0.00032755,2]
[336708180,1725051041583,-500.0,0.00032755,2]
[336708181,1725051041593,-500.0,0.00032755,2]
[336708182,1725051041603,-500.0,0.00032755,2]
[336708183,1725051041612,-500.0,0.00032755,2]
[336708184,1725051041622,-500.0,0.00032755,2]
[336708185,1725051041632,-500.0,0.00032755,2]
[336708186,1725051041642,-500.0,0.00032755,2]
[336708187,1725051041651,-500.0,0.00032755,2]
[336708188,1725051041660,-500.0,0.00032755,2]
[336708189,1725051041670,-500.0,0.00032755,2]
[336708190,1725051041679,-500.0,0.00032755,2]
[336708191,1725051041688,-500.0,0.00032755,2]
[336708192,1725051041698,-500.0,0.00032755,2]
[336708193,1725051041707,-500.0,0.00032755,2]
[336708194,1725051041716,-500.0,0.00032755,2]
[336708195,1725051041726,-500.0,0.00032755,2]
[336708196,1725051041736,-248.03701621,0.00032755,2]
[336708197,1725051041749,-251.96298379,0.00032755,2]
[336708198,1725051041759,-500.0,0.00032755,2]
[336708199,1725051041769,-637.8574,0.00032755,2]
[336708200,1725051041780,-312.97862821,0.00032755,2]
[336708201,1725051041793,-187.02137179,0.00032755,2]
[336708202,1725051041803,-500.0,0.00032755,2]
[336708203,1725051041812,-500.0,0.00032755,2]
[336708204,1725051041822,-600.0,0.00032755,2]
[336708205,1725051041831,-500.0,0.00032755,2]
[336708206,1725051041841,-500.0,0.00032755,2]
[336708207,1725051041851,-500.0,0.00032755,2]
[336708208,1725051041861,-2540.42543453,0.00032756,4]
[336708243,1725051043691,-1349.31,0.00032746,3]
[336708244,1725051043700,-210118.56052247,0.00032756,4]
[336708245,1725051043710,-295.40523457,0.00032765,2]
[336708246,1725051043720,-500.0,0.00032765,2]
[336708247,1725051043729,-500.0,0.00032765,2]
[336708248,1725051043738,-500.0,0.00032765,2]
[336708250,1725051043748,-500.0,0.00032765,2]
[336708251,1725051043758,-364.5453849,0.00032765,2]
[336708252,1725051043767,-500.0,0.00032765,2]
[336708253,1725051043776,-500.0,0.00032765,2]
[336708254,1725051043785,-500.0,0.00032765,2]
[336708255,1725051043794,-500.0,0.00032765,2]
[336708256,1725051043803,-500.0,0.00032765,2]
[336708257,1725051043813,-500.0,0.00032765,2]
[336708258,1725051043823,-174.66263856,0.00032765,2]
[336708259,1725051043832,-500.0,0.00032765,2]
[336708260,1725051043842,-250.0,0.00032765,2]
[336708261,1725051043851,-1185.44368659,0.00032765,5]
[336708262,1725051043862,-638.77406838,0.00032765,5]
[336708263,1725051043871,-88888.0,0.00032766,5]
[336708264,1725051043882,-212658.985957,0.00032766,4]
[336708265,1725051043892,-19948.16037367,0.00032776,2]
[336708266,1725051043903,-4683.1284344,0.00032791,2]
[336708267,1725051043915,-150.112233,0.000328,5]
[336708268,1725051043925,-150.112233,0.000328,5]
[336708269,1725051043935,-150.112233,0.000328,10]
[336708270,1725051043944,-150.112233,0.000328,10]
[336708271,1725051043953,-150.112233,0.000328,10]
[336708272,1725051043963,-150.112233,0.000328,5]
[336708273,1725051043972,-150.112233,0.000328,6]
[336708274,1725051043981,-150.112233,0.000328,7]
[336708275,1725051043990,-328.655994,0.00032856,7]
[336708276,1725051044001,-328.655994,0.00032856,7]
[336708277,1725051044010,-151.0,0.00032856,7]
[336708278,1725051044019,-1929.350467,0.00032856,7]
[336708279,1725051044038,-1929.350467,0.00032856,7]
[336708280,1725051044054,-238.864048,0.00032856,7]
[336708281,1725051044066,-238.864048,0.00032856,7]
[336708282,1725051044076,-151.0,0.00032856,7]
[336708283,1725051044087,-151.0,0.00032856,7]
[336708284,1725051044097,-151.0,0.00032856,7]
[336708285,1725051044107,-151.0,0.00032856,7]
[336708286,1725051044117,-314.663531,0.00032856,7]
[336708287,1725051044128,-314.663531,0.00032856,7]
[336708288,1725051044141,-281.846403,0.00032856,7]
[336708289,1725051044153,-281.846403,0.00032856,7]
[336708290,1725051044162,-500.0,0.00032865,7]
[336708291,1725051044172,-500.0,0.00032873,5]
[336708292,1725051044182,-363.41821401,0.00032873,5]
[336708293,1725051044192,-375.39644856,0.00032873,2]
[336708294,1725051044204,-1000.0,0.00032875,120]
[336708295,1725051044215,-502.0127902,0.00032876,31]
[336708296,1725051044227,-500.0,0.00032876,31]
[336708297,1725051044239,-500.0,0.00032876,31]
[336708298,1725051044249,-500.0,0.00032876,31]
[336708299,1725051044261,-500.0,0.00032876,31]
[336708300,1725051044271,-500.0,0.00032876,31]
[336708301,1725051044280,-500.0,0.00032876,31]
[336708302,1725051044292,-500.0,0.00032876,31]
[336708303,1725051044302,-188.34866886,0.00032876,31]
[336708304,1725051044312,-503.54409052,0.00032876,31]
[336708305,1725051044322,-500.0,0.00032876,31]
[336708306,1725051044332,-500.93089011,0.00032876,31]
[336708307,1725051044341,-512.22767555,0.00032876,31]
[336708308,1725051044350,-500.0,0.00032876,31]
[336708309,1725051044359,-500.0,0.00032876,31]
[336708310,1725051044369,-500.0,0.00032876,31]
[336708311,1725051044380,-500.0,0.00032876,31]
[336708312,1725051044389,-500.65050875,0.00032876,2]
[336708313,1725051044400,-500.0,0.00032876,30]
[336708314,1725051044410,-500.0,0.00032876,31]
[336708315,1725051044420,-500.0,0.00032876,31]
[336708316,1725051044433,-500.0,0.00032876,31]
[336708317,1725051044444,-500.0,0.00032876,31]
[336708318,1725051044455,-500.0,0.00032876,31]
[336708319,1725051044467,-500.0,0.00032876,31]
[336708320,1725051044476,-290.82643748,0.00032876,31]
[336708321,1725051044489,-304.04680031,0.00032876,31]
[336708322,1725051044498,-500.0,0.00032876,31]
[336708323,1725051044508,-500.0,0.00032876,31]
[336708324,1725051044518,-500.0,0.00032876,31]
[336708325,1725051044528,-500.0,0.00032876,31]
[336708326,1725051044537,-500.0,0.00032876,31]
[336708327,1725051044547,-500.0,0.00032876,31]
[336708328,1725051044557,-335.45152736,0.00032876,31]
[336708329,1725051044567,-500.0,0.00032876,31]
[336708330,1725051044576,-500.0,0.00032876,31]
[336708331,1725051044585,-500.0,0.00032876,31]
[336708332,1725051044595,-500.0,0.00032876,31]
[336708333,1725051044604,-500.0,0.00032876,31]
[336708334,1725051044613,-512.53181052,0.00032876,31]
[336708335,1725051044623,-500.0,0.00032876,31]
[336708336,1725051044633,-531.29324683,0.00032876,31]
[336708337,1725051044642,-500.0,0.00032876,31]
[336708338,1725051044652,-500.0,0.00032876,31]
[336708339,1725051044666,-500.33208003,0.00032876,31]
[336708341,1725051044675,-501.98450869,0.00032876,31]
[336708342,1725051044685,-500.0,0.00032876,31]
[336708343,1725051044696,-500.0,0.00032876,31]
[336708345,1725051044706,-500.0,0.00032876,31]
[336708347,1725051044715,-500.0,0.00032876,31]
[336708349,1725051044725,-500.0,0.00032876,31]
[336708350,1725051044735,-500.0,0.00032876,31]
[336708352,1725051044751,-500.0,0.00032876,31]
[336708354,1725051044761,-500.0,0.00032876,31]
[336708356,1725051044770,-500.0,0.00032876,31]
[336708358,1725051044780,-500.0,0.00032876,31]
[336708360,1725051044790,-500.0,0.00032876,31]
[336708362,1725051044801,-500.0,0.00032876,31]
[336708364,1725051044811,-500.0,0.00032876,31]
[336708366,1725051044821,-500.0,0.00032876,31]
[336708368,1725051044831,-500.0,0.00032876,31]
[336708369,1725051044841,-500.0,0.00032876,31]
[336708371,1725051044851,-500.0,0.00032876,31]
[336708372,1725051044863,-500.0,0.00032876,31]
[336708373,1725051044873,-500.0,0.00032876,31]
[336708374,1725051044883,-501.01956538,0.00032876,31]
[336708375,1725051044892,-504.28122329,0.00032876,31]
[336708376,1725051044902,-500.0,0.00032876,31]
[336708377,1725051044911,-500.0,0.00032876,31]
[336708378,1725051044921,-500.0,0.00032876,31]
[336708379,1725051044930,-500.0,0.00032876,31]
[336708380,1725051044939,-500.0,0.00032876,31]
[336708381,1725051044948,-500.0,0.00032876,31]
[336708382,1725051044958,-500.0,0.00032876,31]
[336708383,1725051044969,-500.0,0.00032876,31]
[336708384,1725051044978,-500.0,0.00032876,31]
[336708385,1725051044989,-865.24,0.00032876,31]
[336708386,1725051044998,-500.0,0.00032876,31]
[336708387,1725051045008,-520.5240617,0.00032876,31]
[336708388,1725051045019,-500.0,0.00032876,31]
[336708389,1725051045030,-373.35927964,0.00032876,31]
[336708390,1725051045256,-126.64072036,0.00032876,31]
[336708391,1725051045266,-500.0,0.00032876,31]
[336708392,1725051045275,-500.0,0.00032876,31]
[336708393,1725051045284,-500.0,0.00032876,31]
[336708394,1725051045296,-500.0,0.00032876,31]
[336708395,1725051045305,-500.0,0.00032876,31]
[336708396,1725051045315,-500.0,0.00032876,31]
[336708397,1725051045325,-500.0,0.00032876,31]
[336708398,1725051045334,-500.0,0.00032876,31]
[336708399,1725051045347,-500.0,0.00032876,31]
[336708400,1725051045357,-500.0,0.00032876,31]
[336708401,1725051045366,-204.34355423,0.00032876,31]
[336708402,1725051045376,-500.0,0.00032876,31]
[336708403,1725051045385,-500.0,0.00032876,31]
[336708404,1725051045394,-500.0,0.00032876,31]
[336708405,1725051045403,-500.0,0.00032876,31]
[336708406,1725051045413,-395.03801319,0.00032876,31]
[336708407,1725051045422,-500.0,0.00032876,31]
[336708408,1725051045434,-500.0,0.00032876,31]
[336708409,1725051045444,-500.0,0.00032876,31]
[336708410,1725051045456,-500.0,0.00032876,31]
[336708411,1725051045466,-500.0,0.00032876,31]
[336708412,1725051045476,-500.0,0.00032876,31]
[336708413,1725051045487,-500.0,0.00032876,31]
[336708414,1725051045496,-500.0,0.00032876,31]
[336708415,1725051045505,-500.0,0.00032876,31]
[336708416,1725051045515,-500.0,0.00032876,31]
[336708417,1725051045526,-500.0,0.00032876,31]
[336708418,1725051045538,-500.0,0.00032876,10]
[336708419,1725051045549,-208.41436869,0.00032876,31]
[336708420,1725051045559,-501.1310055,0.00032876,31]
[336708421,1725051045569,-500.0,0.00032876,31]
[336708422,1725051045579,-500.0,0.00032876,31]
[336708423,1725051045588,-500.0,0.00032876,31]
[336708424,1725051045598,-500.0,0.00032876,31]
[336708425,1725051045607,-501.47411555,0.00032876,31]
[336708426,1725051045616,-500.0,0.00032876,31]
[336708427,1725051045626,-500.0,0.00032876,31]
[336708428,1725051045636,-500.0,0.00032876,31]
[336708429,1725051045645,-500.0,0.00032876,31]
[336708430,1725051045654,-522.97264926,0.00032876,31]
[336708431,1725051045664,-649.67201791,0.00032876,31]
[336708432,1725051045674,-500.0,0.00032876,31]
[336708433,1725051045684,-500.0,0.00032876,31]
[336708434,1725051045694,-500.0,0.00032876,31]
[336708435,1725051045703,-500.0,0.00032876,31]
[336708436,1725051045714,-509.78409266,0.00032876,31]
[336708437,1725051045724,-500.0,0.00032876,31]
[336708438,1725051045734,-500.0,0.00032876,31]
[336708439,1725051045743,-500.0,0.00032876,31]
[336708440,1725051045753,-500.0,0.00032876,31]
[336708441,1725051045762,-500.0,0.00032876,31]
[336708442,1725051045773,-521.40089039,0.00032876,31]
[336708443,1725051045783,-500.0,0.00032876,31]
[336708444,1725051045792,-501.33267339,0.00032876,31]
[336708445,1725051045802,-500.0,0.00032876,31]
[336708446,1725051045811,-500.0,0.00032876,31]
[336708447,1725051045822,-500.0,0.00032876,31]
[336708448,1725051045832,-500.0,0.00032876,31]
[336708449,1725051045845,-500.0,0.00032876,31]
[336708450,1725051045854,-500.0,0.00032876,31]
[336708451,1725051045863,-617.74032906,0.00032876,31]
[336708452,1725051045873,-532.20375761,0.00032876,31]
[336708453,1725051045882,-506.00562269,0.00032876,31]
[336708454,1725051045892,-500.0,0.00032876,31]
[336708455,1725051045901,-500.0,0.00032876,31]
[336708456,1725051045910,-500.0,0.00032876,31]
[336708457,1725051045920,-500.0,0.00032876,31]
[336708458,1725051045929,-151.0,0.00032876,7]
[336708459,1725051045938,-500.0,0.00032876,31]
[336708460,1725051045948,-502.37310015,0.00032876,31]
[336708461,1725051045959,-500.0,0.00032876,31]
[336708462,1725051045970,-500.0,0.00032876,31]
[336708463,1725051045979,-242.321902,0.00032876,7]
[336708464,1725051045988,-505.9300018,0.00032876,31]
[336708465,1725051045997,-151.0,0.00032876,7]
[336708466,1725051046009,-500.0,0.00032876,31]
[336708467,1725051046022,-670.2,0.00032876,31]
[336708468,1725051046033,-501.53016069,0.00032876,31]
[336708469,1725051046043,-230.345981,0.00032876,7]
[336708470,1725051046053,-242.321902,0.00032876,7]
[336708471,1725051046064,-500.0,0.00032876,31]
[336708472,1725051046075,-500.0,0.00032876,31]
[336708473,1725051046084,-500.0,0.00032876,31]
[336708474,1725051046094,-501.79442452,0.00032876,31]
[336708475,1725051046103,-500.0,0.00032876,31]
[336708476,1725051046114,-500.0,0.00032876,31]
[336708478,1725051046123,-500.0,0.00032876,31]
[336708481,1725051046270,-500.0,0.00032876,31]
[336708482,1725051046280,-500.0,0.00032876,31]
[336708483,1725051046290,-500.0,0.00032876,31]
[336708484,1725051046301,-500.0,0.00032876,31]
[336708485,1725051046312,-500.0,0.00032876,31]
[336708486,1725051046321,-500.0,0.00032876,31]
[336708487,1725051046331,-505.73439015,0.00032876,31]
[336708488,1725051046342,-500.0,0.00032876,31]
[336708490,1725051046354,-501.33802707,0.00032876,31]
[336708492,1725051046365,-151.0,0.00032876,7]
[336708494,1725051046377,-500.0,0.00032876,31]
[336708495,1725051046386,-500.0,0.00032876,31]
[336708497,1725051046396,-502.34190076,0.00032876,31]
[336708498,1725051046406,-508.25812121,0.00032876,31]
[336708500,1725051046415,-500.0,0.00032876,31]
[336708502,1725051046424,-500.0,0.00032876,31]
[336708504,1725051046434,-500.0,0.00032876,31]
[336708505,1725051046442,-289.57453911,0.00032876,31]
[336708512,1725051046699,-210.42546089,0.00032876,31]
[336708513,1725051046709,-500.0,0.00032876,31]
[336708514,1725051046718,-500.0,0.00032876,31]
[336708515,1725051046729,-500.0,0.00032876,31]
[336708516,1725051046740,-135.17148168,0.00032876,31]
[336708545,1725051656369,158.797451,0.00014247,2]
[336708572,1725052231725,-158.617678,0.0001863,2]
[336708573,1725052231735,-158.797451,0.00023014,2]
[336708574,1725052231746,-158.617678,0.00025205,2]
[336708575,1725052231756,-157.17,0.000266,31]
[336708576,1725052231766,-154.0,0.00027,2]
[336708577,1725052231778,-500.0,0.00027647,2]
[336708578,1725052231789,-200.0,0.00027705,2]
[336708579,1725052231799,-500.0,0.00027876,2]
[336708580,1725052231809,-309.0600198,0.00028097,2]
[336708581,1725052231820,-283.72340458,0.00028142,15]
[336708582,1725052231830,-16508.6377693,0.00028143,2]
[336708583,1725052231840,-500.0,0.00028171,2]
[336708584,1725052231850,-166.666667,0.00028581,2]
[336708585,1725052231860,-380.0,0.00028588,2]
[336708586,1725052231870,-162.331425,0.000287,2]
[336708587,1725052231880,-166.666667,0.00028705,2]
[336708588,1725052231890,-744.4024012,0.00028759,2]
[336708589,1725052231900,-154.0,0.00028767,2]
[336708590,1725052231912,-166.666667,0.00028829,2]
[336708591,1725052231922,-623.3596827,0.00028876,2]
[336708592,1725052231931,-500.0,0.0002894,2]
[336708593,1725052231941,-166.666667,0.00028953,2]
[336708594,1725052231953,-166.666667,0.00029077,2]
[336708595,1725052231962,-166.666667,0.00029201,2]
[336708596,1725052231971,-166.666667,0.00029326,2]
[336708597,1725052231980,-166.666667,0.0002945,2]
[336708598,1725052231990,-500.0,0.00029458,2]
[336708599,1725052231999,-166.666667,0.00029574,2]
[336708600,1725052232010,-166.666667,0.00029698,2]
[336708601,1725052232020,-166.666667,0.00029822,2]
[336708602,1725052232029,-157.17,0.000299,31]
[336708603,1725052232039,-157.17,0.000299,31]
[336708604,1725052232052,-166.666667,0.00029946,2]
[336708605,1725052232063,-500.0,0.00030044,7]
[336708606,1725052232074,-166.666667,0.0003007,2]
[336708607,1725052232083,-158.0,0.00030205,2]
[336708608,1725052232094,-500.0,0.00030222,7]
[336708609,1725052232104,-298.8,0.00030408,6]
[336708610,1725052232114,-500.0,0.00031124,7]
[336708611,1725052232123,-298.8,0.00031155,7]
[336708612,1725052232133,-500.0,0.00031388,7]
[336708613,1725052232143,-673.20518691,0.00031511,7]
[336708614,1725052232152,-158.797451,0.00031781,2]
[336708615,1725052232163,-158.617678,0.00031781,2]
[336708616,1725052232174,-298.8,0.00031903,7]
[336708617,1725052232184,-451.8415669,0.00031941,2]
[336708618,1725052232194,-2385.90382625,0.0003214,2]
[336708619,1725052232203,-290.189,0.0003224,2]
[336708620,1725052232213,-522.0,0.0003224,2]
[336708621,1725052232223,-415.7025246,0.00032446,2]
[336708622,1725052232234,-415.7025246,0.00032446,2]
[336708623,1725052232243,-415.7025246,0.00032446,2]
[336708624,1725052232254,-330.6880762,0.00032446,2]
[336708625,1725052232264,-415.7025246,0.00032446,2]
[336708626,1725052232274,-1089.63432502,0.00032646,30]
[336708627,1725052232284,-298.8,0.0003265,15]
[336708628,1725052232295,-46019.30987276,0.00032655,5]
[336708629,1725052232305,-2000.0,0.00032666,2]
[336708630,1725052232316,-182.34904719,0.00032666,2]
[336708631,1725052232326,-182.34904717,0.00032691,2]
[336708632,1725052232337,-182.34904717,0.00032716,2]
[336708633,1725052232347,-182.34904717,0.00032741,2]
[336708634,1725052232358,-151.0,0.00032756,7]
[336708635,1725052232368,-151.0,0.00032756,7]
[336708636,1725052232378,-151.0,0.00032756,7]
[336708637,1725052232388,-1124.43,0.00032756,3]
[336708638,1725052232398,-500.0,0.00032765,2]
[336708639,1725052232407,-500.0,0.00032765,2]
[336708640,1725052232421,-500.0,0.00032765,2]
[336708641,1725052232431,-500.0,0.00032765,2]
[336708642,1725052232440,-500.0,0.00032765,2]
[336708643,1725052232450,-223.78574,0.00032765,2]
[336708644,1725052232460,-82370.95375763,0.00032766,4]
[336708658,1725052238048,-2516.17483798,0.00032766,4]
[336708681,1725052240003,-937.02,0.00032756,3]
[336708682,1725052240014,-36389.50299801,0.00032766,4]
[336708697,1725052243111,-4800.17456108,0.00032766,4]
[336708702,1725052243260,-9.9047032,0.00032766,4]
[336708759,1725052651918,158.797451,0.00014247,2]
[336708778,1725053357147,-253.86402005,0.0001853,2]
[336708779,1725053357169,-50.61004692,0.0001863,2]
[336708809,1725053438169,-108.00763108,0.0001863,2]
[336708810,1725053438183,-10066.27482269,0.0002,2]
[336708811,1725053438192,-4296.32513684,0.0002,2]
[336708812,1725053438202,-20806.3048956,0.0002,2]
[336708813,1725053438211,-26170.8397269,0.00022,2]
[336708814,1725053438221,-375.39644856,0.000225,2]
[336708815,1725053438230,-319.22811819,0.00024,2]
[336708816,1725053438241,-1030.22078136,0.00025,2]
[336708817,1725053438251,-57935.79469619,0.00025,2]
[336708818,1725053438261,-6765.67241064,0.00025,2]
[336708819,1725053438271,-156.64151692,0.00025,2]
[336708820,1725053438281,-163.98411819,0.00025,2]
[336708821,1725053438290,-158.797451,0.00025405,2]
[336708822,1725053438301,-162.331425,0.00025443,2]
[336708823,1725053438311,-158.617678,0.00026521,2]
[336708824,1725053438320,-500.0,0.00026574,2]
[336708825,1725053438330,-500.0,0.00026574,2]
[336708826,1725053438339,-622.378574,0.00026574,2]
[336708827,1725053438349,-500.0,0.00027092,2]
[336708828,1725053438360,-500.0,0.00027726,2]
[336708829,1725053438370,-500.0,0.0002855,2]
[336708830,1725053438380,-154.0,0.0003,2]
[336708831,1725053438390,-199.2,0.00030402,6]
[336708832,1725053438399,-500.0,0.000305,5]
[336708833,1725053438409,-199.2,0.0003115,7]
[336708834,1725053438419,-2787.8066581,0.00031544,2]
[336708835,1725053438429,-306.0,0.00031624,2]
[336708836,1725053438439,-154.0,0.00031644,2]
[336708837,1725053438450,-153.0,0.00031878,2]
[336708838,1725053438460,-199.2,0.00031898,7]
[336708839,1725053438470,-4683.1284344,0.00032408,2]
[336708840,1725053438479,-153.0,0.00032446,2]
[336708841,1725053438489,-153.0,0.00032446,2]
[336708842,1725053438498,-1161.91,0.0003249,3]
[336708843,1725053438508,-1161.91,0.0003249,3]
[336708844,1725053438518,-36057.8069212,0.000325,2]
[336708845,1725053438527,-199.2,0.00032646,15]
[336708846,1725053438536,-490.86240149,0.00032649,7]
[336708847,1725053438546,-5500.0,0.00032649,120]
[336708848,1725053438556,-5830.13522116,0.00032649,120]
[336708849,1725053438566,-19948.16037367,0.00032666,2]
[336708850,1725053438575,-2000.0,0.00032666,2]
[336708851,1725053438584,-182.34904717,0.00032666,2]
[336708852,1725053438594,-500.0,0.00032698,120]
[336708853,1725053438604,-500.0,0.00032698,120]
[336708854,1725053438613,-500.0,0.00032698,120]
[336708855,1725053438623,-512.35,0.00032698,120]
[336708856,1725053438632,-500.0,0.00032698,120]
[336708857,1725053438642,-500.0,0.00032698,120]
[336708858,1725053438652,-500.0,0.00032698,120]
[336708859,1725053438662,-500.0,0.00032698,120]
[336708860,1725053438671,-500.0,0.00032698,120]
[336708861,1725053438681,-500.0,0.00032698,120]
[336708862,1725053438690,-500.0,0.00032698,120]
[336708863,1725053438700,-500.0,0.00032698,120]
[336708864,1725053438710,-500.0,0.00032698,120]
[336708865,1725053438719,-500.0,0.00032698,120]
[336708866,1725053438729,-500.0,0.00032698,120]
[336708867,1725053438739,-150.112233,0.000327,7]
[336708868,1725053438748,-150.112233,0.000327,7]
[336708869,1725053438758,-150.112233,0.000327,7]
[336708870,1725053438768,-150.112233,0.000327,5]
[336708871,1725053438779,-150.112233,0.000327,8]
[336708872,1725053438789,-638.77406838,0.00032755,5]
[336708873,1725053438800,-500.0,0.00032755,2]
[336708874,1725053438811,-174.66263856,0.00032755,2]
[336708875,1725053438822,-295.40523457,0.00032755,2]
[336708876,1725053438832,-500.0,0.00032755,2]
[336708877,1725053438843,-500.0,0.00032755,2]
[336708878,1725053438852,-500.0,0.00032755,2]
[336708879,1725053438864,-500.0,0.00032755,2]
[336708880,1725053438875,-500.0,0.00032755,2]
[336708881,1725053438885,-500.0,0.00032755,2]
[336708882,1725053438895,-500.0,0.00032755,2]
[336708883,1725053438907,-500.0,0.00032755,2]
[336708884,1725053438917,-500.0,0.00032755,2]
[336708885,1725053438928,-453.29063251,0.00032755,2]
[336708886,1725053438939,-1185.44368659,0.00032755,5]
[336708887,1725053438949,-415984.891982,0.00032756,4]
[336708888,1725053438961,-160.0,0.00032765,10]
[336708889,1725053438970,-161.503197,0.00032766,7]
[336708890,1725053438980,-161.503197,0.00032766,7]
[336708891,1725053438990,-225.639711,0.00032766,7]
[336708892,1725053438999,-225.639711,0.00032766,7]
[336708893,1725053439010,-151.0,0.00032766,7]
[336708894,1725053439020,-662.138748,0.00032766,7]
[336708895,1725053439031,-662.138748,0.00032766,7]
[336708896,1725053439042,-151.0,0.00032766,7]
[336708897,1725053439052,-151.0,0.00032766,7]
[336708898,1725053439062,-151.0,0.00032766,7]
[336708899,1725053439072,-151.0,0.00032766,7]
[336708900,1725053439082,-1101.812687,0.00032766,7]
[336708901,1725053439096,-1101.812687,0.00032766,7]
[336708902,1725053439107,-1000.0,0.00032775,120]
[336708903,1725053439117,-59633.35489228,0.00032776,5]
[336708904,1725053439133,-14794.46480406,0.00032776,5]
[336708905,1725053439145,-2475.2287739,0.00032776,5]
[336708911,1725053440099,-500.0,0.00032698,120]
[336708912,1725053440108,-500.0,0.00032698,120]
[336708913,1725053440118,-500.0,0.00032698,120]
[336708914,1725053440129,-500.0,0.00032755,2]
[336708915,1725053440138,-428.70445133,0.00032755,2]
[336708916,1725053440148,-11984.95152976,0.00032776,5]
[336708917,1725053440158,-161.503197,0.00032776,7]
[336708918,1725053440169,-161.503197,0.00032776,7]
[336708919,1725053440180,-225.639711,0.00032776,7]
[336708920,1725053440190,-225.639711,0.00032776,7]
[336708921,1725053440200,-662.138748,0.00032776,7]
[336708922,1725053440210,-662.138748,0.00032776,7]
[336708923,1725053440220,-151.0,0.00032776,7]
[336708924,1725053440230,-191.537894,0.00032776,7]
[336708925,1725053440241,-1101.812687,0.00032776,7]
[336708926,1725053440250,-1101.812687,0.00032776,7]
[336708927,1725053440260,-6009.633282,0.00032776,7]
[336708928,1725053440270,-6009.633282,0.00032776,7]
[336708929,1725053440279,-151.0,0.00032776,7]
[336708930,1725053440289,-151.0,0.00032776,7]
[336708931,1725053440298,-1929.350467,0.00032776,7]
[336708932,1725053440308,-150.112233,0.000328,6]
[336708933,1725053440318,-150.112233,0.000328,5]
[336708934,1725053440327,-150.112233,0.000328,8]
[336708935,1725053440338,-150.112233,0.000328,7]
[336708936,1725053440348,-150.112233,0.000328,9]
[336708937,1725053440358,-150.112233,0.000328,7]
[336708938,1725053440368,-150.112233,0.000328,9]
[336708939,1725053440378,-150.112233,0.000328,7]
[336708940,1725053440388,-150.112233,0.000328,6]